[Event "44th Chess Olympiad Women 2022"]
[Site "Chennai"]
[Date "2022.08.02"]
[Round "5.41"]
[White "Ofowino, Toritsemuwa"]
[Black "Mutisya, Jully"]
[Result "1-0"]
[ECO "B08"]
[WhiteElo "1870"]
[BlackElo "1428"]
[Annotator "NA RC COMBH"]
[PlyCount "103"]
[EventDate "2022.07.29"]
[EventType "team-tourn"]
[EventCountry "IND"]
[SourceTitle "playchess.com"]
[Source "ChessBase"]
[SourceQuality "1"]
[WhiteTeam "Nigeria"]
[BlackTeam "Kenya"]
[WhiteTeamCountry "NGR"]
[BlackTeamCountry "KEN"]
[TimeControl "40/5400+30:1800+30"]

1. d4 {[%emt 0:00:09]} Nf6 {[%emt 0:00:13]} 2. Nf3 {[%emt 0:00:21]} g6 {[%emt 0:00:13]} 3. Nc3 {[%emt 0:00:19]} Bg7 {[%emt 0:00:22]} 4. e4 {[%emt 0:00:16]} d6 {[%emt 0:00:18]} 5. h3 {[%emt 0:01:07]} O-O {[%emt 0:00:23]} 6. Be3 {[%emt 0:00:25]} c6 {[%emt 0:00:27]} 7. a4 {[%emt 0:03:23]} Nbd7 {[%emt 0:02:55]} 8. e5 {[%emt 0:06:03]} Ne8 {[%emt 0:07:35]} 9. Bf4 {[%emt 0:00:39]} Qa5 {[%emt 0:10:42]} 10. exd6 {[%emt 0:12:04]} Nxd6 {[%emt 0:05:21]} 11. Bd2 {[%emt 0:07:48]} Qd8 {[%emt 0:09:11]} 12. Be2 {[%emt 0:00:50]} Nf5 {[%emt 0:03:31]} 13. Bf4 {[%emt 0:01:41]} Qb6 {[%emt 0:05:07]} 14. O-O {[%emt 0:08:58]} Nxd4 {[%emt 0:03:09]} 15. Nxd4 {[%emt 0:01:13]} Qxd4 {[%emt 0:03:43]} 16. Qxd4 {[%emt 0:06:45]} Bxd4 {[%emt 0:00:18]} 17. Rad1 {[%emt 0:00:14]} Bxc3 {[%emt 0:06:16]} 18. bxc3 {[%emt 0:00:07]} Nb6 {[%emt 0:00:31]} 19. a5 {[%emt 0:00:50]} Nd5 {[%emt 0:00:22]} 20. Bd2 {[%emt 0:02:00]} Bf5 {[%emt 0:01:52]} 21. c4 {[%emt 0:04:18]} Nf6 {[%emt 0:01:20]} 22. Bd3 {[%emt 0:08:00]} Ne4 {[%emt 0:08:16]} 23. Bb4 {[%emt 0:03:06]} Rfe8 {[%emt 0:11:05]} 24. g4 {[%emt 0:00:57]} c5 {[%emt 0:05:37]} 25. gxf5 {[%emt 0:03:32]} Nxf2 {[%emt 0:01:43]} 26. Rxf2 {[%emt 0:00:15]} cxb4 {[%emt 0:00:07]} 27. Rb1 {[%emt 0:00:30]} e5 {[%emt 0:01:12]} 28. Be4 {[%emt 0:00:38]} Rab8 {[%emt 0:01:43]} 29. Rxb4 {[%emt 0:00:20]} b6 {[%emt 0:01:49]} 30. axb6 {[%emt 0:01:16]} axb6 {[%emt 0:00:18]} 31. fxg6 {[%emt 0:02:42]} hxg6 {[%emt 0:00:39]} 32. Rf6 {[%emt 0:00:11]} Kg7 {[%emt 0:00:40]} 33. Rbxb6 {[%emt 0:01:42]} Rxb6 {[%emt 0:00:26]} 34. Rxb6 {[%emt 0:00:05]} f5 {[%emt 0:00:09]} 35. Bd5 {[%emt 0:00:20]} e4 {[%emt 0:00:33]} 36. Kf2 {[%emt 0:05:45]} f4 {[%emt 0:01:05]} 37. Re6 {[%emt 0:00:22]} e3+ {[%emt 0:01:40]} 38. Kf3 {[%emt 0:01:12]} Rxe6 {[%emt 0:02:43]} 39. Bxe6 {[%emt 0:00:06]} Kf6 {[%emt 0:00:10]} 40. Bg4 {[%emt 0:00:35]} Ke5 {[%emt 0:00:33]} 41. c5 {[%emt 0:31:57]} g5 {[%emt 0:31:19]} 42. c6 {[%emt 0:02:30]} Kd6 {[%emt 0:01:03]} 43. Ke4 {[%emt 0:03:47]} Kxc6 {[%emt 0:00:20]} 44. Kd4 {[%emt 0:00:43]} Kd6 {[%emt 0:01:37]} 45. c4 {[%emt 0:00:13]} Kc6 {[%emt 0:00:25]} 46. Bf3+ {[%emt 0:00:43]} Kd6 {[%emt 0:00:38]} 47. c5+ {[%emt 0:00:15]} Kc7 {[%emt 0:00:16]} 48. Kd5 {[%emt 0:00:09]} Kd7 {[%emt 0:00:41]} 49. c6+ {[%emt 0:01:08]} Kc7 {[%emt 0:00:19]} 50. Kc5 {[%emt 0:00:07]} Kc8 {[%emt 0:00:00]} 51. Kd6 {[%emt 0:00:00]} Kb8 {[%emt 0:00:00]} 52. c7+ {[%emt 0:00:24]} 1-0

[Event "44th Chess Olympiad Women 2022"]
[Site "Chennai"]
[Date "2022.08.02"]
[Round "5.41"]
[White "Onoja, Iyefu Joy"]
[Black "Ndirangu, Joyce Nyaruai"]
[Result "1-0"]
[ECO "E61"]
[WhiteElo "1869"]
[BlackElo "1679"]
[Annotator "NA RC COMBH"]
[PlyCount "79"]
[EventDate "2022.07.29"]
[EventType "team-tourn"]
[EventCountry "IND"]
[SourceTitle "playchess.com"]
[Source "ChessBase"]
[SourceQuality "1"]
[WhiteTeam "Nigeria"]
[BlackTeam "Kenya"]
[WhiteTeamCountry "NGR"]
[BlackTeamCountry "KEN"]
[TimeControl "40/5400+30:1800+30"]

1. d4 {[%emt 0:00:11]} Nf6 {[%emt 0:00:13]} 2. Nf3 {[%emt 0:00:44]} g6 {[%emt 0:00:52]} 3. c4 {[%emt 0:03:42]} Bg7 {[%emt 0:00:06]} 4. Nc3 {[%emt 0:00:31]} d6 {[%emt 0:00:34]} 5. h3 {[%emt 0:01:02]} Nbd7 {[%emt 0:09:35]} 6. Bf4 {[%emt 0:00:48]} c6 {[%emt 0:22:15]} 7. e3 {[%emt 0:05:33]} Qa5 {[%emt 0:06:13]} 8. Qa4 {[%emt 0:07:39]} Qxa4 {[%emt 0:11:08]} 9. Nxa4 {[%emt 0:00:07]} Ne4 {[%emt 0:02:19]} 10. Bd3 {[%emt 0:00:49]} Ndf6 {[%emt 0:04:37]} 11. g4 {[%emt 0:01:40]} h6 {[%emt 0:06:06]} 12. Nc3 {[%emt 0:08:39]} Nxc3 {[%emt 0:02:04]} 13. bxc3 {[%emt 0:00:08]} c5 {[%emt 0:00:41]} 14. Nd2 {[%emt 0:03:47]} b6 {[%emt 0:01:09]} 15. Ne4 {[%emt 0:01:11]} Nd7 {[%emt 0:00:34]} 16. Bh2 {[%emt 0:02:43]} Ba6 {[%emt 0:04:31]} 17. Be2 {[%emt 0:05:31]} O-O {[%emt 0:04:06]} 18. Rg1 {[%emt 0:03:03]} Kh8 {[%emt 0:03:01]} 19. h4 {[%emt 0:06:11]} Rac8 {[%emt 0:04:02]} 20. Nd2 {[%emt 0:00:37]} Bb7 {[%emt 0:06:29]} 21. a4 {[%emt 0:04:51]} f5 {[%emt 0:03:46]} 22. a5 {[%emt 0:05:43]} e5 {[%emt 0:05:43]} 23. axb6 {[%emt 0:02:04]} axb6 {[%emt 0:00:21]} 24. Ra7 {[%emt 0:00:12]} Rb8 {[%emt 0:00:07]} 25. Bf3 {[%emt 0:07:56]} Bxf3 {[%emt 0:01:45]} 26. Nxf3 {[%emt 0:00:22]} Rbd8 {[%emt 0:00:20]} 27. gxf5 {[%emt 0:03:09]} gxf5 {[%emt 0:00:20]} 28. Rg6 {[%emt 0:05:55]} Rf6 {[%emt 0:00:28]} 29. h5 {[%emt 0:00:04]} Rxg6 {[%emt 0:00:33]} 30. hxg6 {[%emt 0:00:05]} Nf6 {[%emt 0:00:32]} 31. Nh4 {[%emt 0:00:12]} Kg8 {[%emt 0:00:56]} 32. dxe5 {[%emt 0:00:47]} dxe5 {[%emt 0:00:26]} 33. Nxf5 {[%emt 0:00:38]} Nh5 {[%emt 0:00:37]} 34. Nxg7 {[%emt 0:00:46]} Nxg7 {[%emt 0:00:06]} 35. Bxe5 {[%emt 0:00:09]} Ne8 {[%emt 0:00:42]} 36. Rh7 {[%emt 0:00:42]} Kf8 {[%emt 0:00:13]} 37. g7+ {[%emt 0:00:19]} Kf7 {[%emt 0:00:24]} 38. Rh8 {[%emt 0:00:32]} Nxg7 {[%emt 0:01:04]} 39. Rxd8 {[%emt 0:00:07]} Nf5 {[%emt 0:00:27]} 40. Bc7 {[%emt 0:01:12]} 1-0

[Event "44th Chess Olympiad Women 2022"]
[Site "Chennai"]
[Date "2022.08.02"]
[Round "5.41"]
[White "Mongeli, Sasha"]
[Black "Enomah Emmanuella Trust"]
[Result "1-0"]
[ECO "A15"]
[WhiteElo "1672"]
[BlackElo "1901"]
[Annotator "TA"]
[PlyCount "239"]
[EventDate "2022.07.29"]
[EventType "team-tourn"]
[EventCountry "IND"]
[SourceTitle "playchess.com"]
[Source "ChessBase"]
[SourceQuality "1"]
[WhiteTeam "Kenya"]
[BlackTeam "Nigeria"]
[WhiteTeamCountry "KEN"]
[BlackTeamCountry "NGR"]
[TimeControl "40/5400+30:1800+30"]

{[%evp 14,239,2,5,12,7,22,21,24,21,23,-31,22,14,24,0,3,0,21,8,26,28,20,7,15,20,15,9,12,7,20,0,29,20,74,70,59,58,62,64,58,52,68,50,50,49,42,28,15,0,7,0,141,135,145,91,110,115,256,250,432,425,375,77,382,382,352,363,971,570,685,568,573,433,375,372,364,348,854,662,861,621,722,487,321,12,12,12,12,10,12,9,9,9,9,9,9,9,9,9,9,9,9,9,9,0,9,0,8,0,0,0,7,0,0,0,0,0,0,0,0,0,0,0,8,0,0,0,7,0,0,0,0,0,253,231,231,216,583,180,180,0,0,0,0,0,0,0,0,0,0,0,0,0,320,302,318,301,29947,29943,10173,5627,29946,29954,2368,865,29991,29968,29968,29957,29961,29956,29956,8147,29965,29952,29968,29958,29974,0,29973,29973,29974,29972,29972,29973,29974,29975,29975,29976,29978,29976,29976,29977,29977,29978,29977,29976,29976,29977,29977,29970,29967,0,29977,29978,29979,29979,29978,29970,29956,4416,29964,6194,29980,29981,29981,29982,29982,29981,29985,29984,29985,29986,29986,29985,29988,421]} 1. Nf3 {[%emt 0:00:09]} Nf6 {[%emt 0:00:07]} 2. c4 {[%emt 0:00:40]} g6 {[%emt 0:00:19]} 3. b3 {[%emt 0:00:32]} Bg7 {[%emt 0:00:14]} 4. Bb2 {[%emt 0:00:10]} d6 {[%emt 0:00:22]} 5. g3 {[%emt 0:02:10]} e5 {[%emt 0:00:48]} 6. d3 {[%emt 0:00:37]} Nbd7 {[%emt 0:01:01]} 7. Bg2 {[%emt 0:00:56]} O-O {[%emt 0:00:28]} 8. O-O {[%emt 0:00:41]} a5 {[%emt 0:00:41] A15: English Opening: 1...Nf6.} 9. a3 {[%emt 0:02:17]} h6 {[%emt 0:02:20]} 10. Nc3 {[%emt 0:09:11] [#]} Nc5 $146 {[%emt 0:02:39] The position is equal.} ({Predecessor:} 10... Re8 11. e4 Nc5 12. b4 axb4 13. axb4 Rxa1 14. Bxa1 Na6 15. Qb1 Nh7 16. h3 Ng5 {1-0 (67) Pedersen,F (2305)-Onley,D (2103) Berlin 2019}) 11. b4 {[%emt 0:05:03]} Ne6 {[%emt 0:00:37]} 12. Nd5 {[%emt 0:09:23]} (12. e3 $11) 12... c6 {[%emt 0:03:26]} (12... Nxd5 $15 13. cxd5 e4 14. Bxg7 exf3 15. Bxf8 fxg2 16. Kxg2 Nxf8) 13. Nxf6+ $11 {[%emt 0:02:17]} Bxf6 {[%emt 0:00:11]} 14. Qd2 {[%emt 0:04:17]} Bg7 {[%emt 0:00:33]} 15. Bc3 {[%emt 0:02:21]} Nd4 {[%emt 0:00:52]} 16. Qb2 {[%emt 0:02:08][%cal Rf3d4] Prevents Nb3.} (16. bxa5 Nb3 17. Qb2 Nxa1 18. Rxa1 f6 $17) 16... Nxf3+ {[%emt 0:03:24]} 17. Bxf3 {[%emt 0:01:41]} Bh3 {[%emt 0:02:04]} 18. Bg2 {[%emt 0:00:39]} Bxg2 {[%emt 0:00:50]} 19. Kxg2 {[%emt 0:00:07]} axb4 {[%emt 0:00:45]} 20. axb4 {[%emt 0:02:37]} Qd7 {[%emt 0:08:10]} 21. Ra5 {[%emt 0:06:07]} (21. b5 {is more complex.} h5 22. Rfb1 h4 23. bxc6 bxc6 24. f3) 21... b6 {[%emt 0:00:00]} 22. Ra2 {[%emt 0:04:07]} Qb7 {[%emt 0:01:13]} 23. Rfa1 {[%emt 0:01:35]} f6 {[%emt 0:06:39]} (23... h5 $11 {remains equal.}) 24. f3 {[%emt 0:02:00]} d5 {[%emt 0:06:20]} 25. cxd5 {[%emt 0:08:29]} cxd5 {[%emt 0:00:21]} 26. b5 {[%emt 0:05:21]} Rxa2 {[%emt 0:01:25]} 27. Rxa2 {[%emt 0:00:47]} Ra8 {[%emt 0:01:48] Prevents Ra6.} 28. Qa1 {[%emt 0:02:00]} Rxa2 {[%emt 0:00:34]} 29. Qxa2 $14 {[%emt 0:00:05][%mdl 4096] Endgame Threatens to win with e4. KQB-KQB} Kh7 {[%emt 0:01:26]} 30. Qa6 {[%emt 0:02:24]} Qc7 {[%emt 0:04:08]} 31. Bb4 {[%emt 0:03:56]} h5 {[%emt 0:02:06]} 32. Qa8 {[%emt 0:05:13]} d4 {[%emt 0:04:05]} (32... Qc2 $11 33. Kf2 Qb2) 33. Qc6 $36 {[%emt 0:00:47][%mdl 2048] White has strong initiative.} Qa7 {[%emt 0:00:31]} 34. Bd6 {[%emt 0:04:28]} ({Better is} 34. Kf2 $1) 34... Qa2 {[%emt 0:00:40]} 35. Kf2 {[%emt 0:00:22]} Qa1 {[%emt 0:02:28]} (35... Qd2 $16 {was necessary.}) 36. f4 $18 {[%emt 0:01:28] aiming for Bc7.} (36. Qxb6 Qh1 $11) 36... Qa5 $2 {[%emt 0:04:17]} (36... Qb1 {was called for.} 37. Qc7 (37. Qxb6 e4 $18) (37. fxe5 fxe5 38. Qb7 Kh8 $16) 37... Kh8 38. Qd8+ (38. fxe5 Qh1 $16) 38... Kh7) 37. fxe5 {[%emt 0:02:38]} fxe5 {[%emt 0:00:34][%cal Oe5e4] [#]} 38. Bc7 $2 {[%emt 0:02:13]} (38. Qc7 $1 $18 Kg8 39. Bxe5 Bxe5 40. Qxe5) 38... Qd2 $2 {[%emt 0:01:14][%mdl 8192]} (38... e4 $16) 39. Bxb6 {[%emt 0:00:32]} ({Not} 39. Qe4 Qg5 $16) 39... Qe3+ {[%emt 0:02:45]} 40. Kf1 {[%emt 0:00:17]} Bh6 $2 {[%emt 0:01:36]} (40... Qg5 41. Bc7 e4) 41. Ba5 {[%emt 0:34:17]} h4 {[%emt 0:30:55]} 42. Qb7+ {[%emt 0:01:56]} Bg7 {[%emt 0:02:09]} 43. Qe4 {[%emt 0:01:43] Active counter play!} Qc1+ {[%emt 0:00:43]} 44. Be1 {[%emt 0:00:26] Black must now prevent b6.} hxg3 {[%emt 0:00:32]} 45. hxg3 {[%emt 0:00:18]} Qc5 {[%emt 0:04:04]} (45... Qb1 46. Qb7 e4 47. dxe4 Kh6) 46. Qc6 {[%emt 0:00:11]} Bf8 {[%emt 0:00:46]} 47. Qb7+ {[%emt 0:00:55]} Qe7 {[%emt 0:02:23]} 48. Qh1+ {[%emt 0:00:00]} Kg7 {[%emt 0:00:00]} 49. b6 $2 {[%emt 0:00:00]} ({White should try} 49. Qc6 $18) 49... Qf6+ $11 {[%emt 0:00:00]} 50. Bf2 {[%emt 0:00:00]} Qxb6 {[%emt 0:00:00]} 51. Qd5 {[%emt 0:00:00]} Qd6 {[%emt 0:00:00]} 52. Qb7+ {[%emt 0:00:00]} Be7 {[%emt 0:00:00]} 53. Kg2 {[%emt 0:00:00]} Kf7 {[%emt 0:00:00]} 54. Be1 {[%emt 0:00:00]} Ke6 {[%emt 0:00:00]} 55. Qc8+ {[%emt 0:00:00]} Kf7 {[%emt 0:00:00]} 56. Qa8 {[%emt 0:00:00]} Bd8 {[%emt 0:00:00]} 57. Bd2 {[%emt 0:00:00]} Be7 {[%emt 0:00:00]} 58. Qb7 {[%emt 0:00:00]} Kf6 {[%emt 0:00:00]} 59. Qa8 {[%emt 0:00:00]} Kf7 {[%emt 0:00:00]} 60. Qa2+ {[%emt 0:00:00]} Kg7 {[%emt 0:00:00]} 61. Qc4 {[%emt 0:00:00]} Qd7 {[%emt 0:00:00]} 62. Qc1 {[%emt 0:00:00]} Qd5+ {[%emt 0:00:00]} 63. Kh2 {[%emt 0:00:00]} e4 {[%emt 0:00:00]} 64. Qf1 {[%emt 0:00:00]} e3 {[%emt 0:00:00]} 65. Be1 {[%emt 0:00:00]} Qa2 {[%emt 0:00:00]} 66. Qf3 {[%emt 0:00:00]} Qa1 {[%emt 0:01:38]} 67. Qe4 {[%emt 0:04:08]} Bf6 {[%emt 0:01:59]} 68. Bb4 {[%emt 0:00:48]} Qa7 {[%emt 0:02:47] Prevents Qb7+.} 69. Bd6 {[%emt 0:00:33]} Qa2 {[%emt 0:02:43]} 70. Qb7+ {[%emt 0:00:40]} Qf7 {[%emt 0:01:04]} 71. Qe4 {[%emt 0:01:16]} Kh7 {[%emt 0:00:47]} 72. Qf3 {[%emt 0:01:01]} Qe6 {[%emt 0:02:13]} 73. Qb7+ {[%emt 0:00:29]} Kh6 $2 {[%emt 0:04:18][%mdl 8192]} (73... Kh8 $11 {and Black has nothing to worry.} 74. Qb8+ Kh7) 74. Bf8+ $18 {[%emt 0:00:37]} Kg5 {[%emt 0:01:18]} 75. Qh7 {[%emt 0:02:00] Intending Qh4+ and mate.} Qd5 $2 {[%emt 0:06:06]} (75... Qg4 {is a self mate.} 76. Bh6+ Kf5 77. Qd7+ Ke5 78. Qxg4 Kd6 79. Bf8+ Kc7 80. Qf4+ Kc8 81. Qxf6) (75... Qe8 76. Qh3 Qxf8 77. Qh4+ Kf5 78. Qe4+ Kg5 79. Qh4+ Kf5 80. Qe4+ Kg5 81. Qh4+) 76. Qh4+ $2 {[%emt 0:01:16]} (76. Qh3 {[%csl Gh3][%cal Rf8h6]} Bd8 77. Bg7) 76... Kf5 {[%emt 0:00:10] [#]} 77. Qf4+ $2 {[%emt 0:01:02]} (77. Qh3+ $1 $18 Ke5 78. Qg4 (78. Qc8 Qd8 $11)) 77... Ke6 $11 {[%emt 0:00:16]} 78. Qg4+ {[%emt 0:00:33]} Kf7 {[%emt 0:00:18]} 79. Bb4 {[%emt 0:00:13]} Qb5 {[%emt 0:00:57]} 80. Bd6 {[%emt 0:00:23]} Qc6 {[%emt 0:00:37]} 81. Bf4 {[%emt 0:00:46]} Qb5 {[%emt 0:00:59]} 82. Bd6 {[%emt 0:00:36]} Qc6 {[%emt 0:02:29]} 83. Bf4 {[%emt 0:00:45]} Be7 $2 {[%emt 0:00:37][%mdl 8192] White stays focused until the end.} (83... Kg7 $11) 84. Be5 $18 {[%emt 0:00:32]} Bc5 {[%emt 0:05:30]} 85. Bxd4 {[%emt 0:00:39]} Bxd4 $2 {[%emt 0:01:13]} (85... Bd6 $18 86. Qh4 Be7 87. Qf4+ Kg8) 86. Qxd4 {[%emt 0:00:09] KQ-KQ} Qe8 {[%emt 0:01:12]} 87. Kg2 {[%emt 0:00:55] White threatens Qe4 and mate.} Qa8+ {[%emt 0:00:17]} 88. Qe4 {[%emt 0:00:10]} Qa7 {[%emt 0:02:48]} 89. Kf3 {[%emt 0:00:27]} (89. d4 $142 Qa5 90. Qxe3) 89... g5 {[%emt 0:00:40]} 90. Qf5+ {[%emt 0:00:47]} Ke8 {[%emt 0:00:11]} 91. Qxg5 {[%emt 0:00:27]} Qf7+ {[%emt 0:00:31]} 92. Qf4 {[%emt 0:00:18]} Qh5+ {[%emt 0:00:12]} 93. Kxe3 {[%emt 0:00:08]} (93. g4 $142 Qh3+ 94. Qg3 Qh1+ 95. Kxe3 Qc1+ 96. Kf2 Kf8 97. Qb8+ Kf7 98. Qe5) 93... Qc5+ {[%emt 0:00:11]} 94. Kf3 {[%emt 0:00:53]} Qc2 {[%emt 0:00:20]} 95. Qe4+ {[%emt 0:00:27]} Kf8 {[%emt 0:00:14]} 96. Qf4+ $2 {[%emt 0:00:35]} (96. d4 {mates} Qc3+ 97. e3 Qe1 98. d5 Qh1+ 99. Kf4 Qh6+ 100. Kg4 Qh2 101. d6) 96... Kg7 $2 {[%emt 0:00:11][%mdl 8192]} (96... Ke8 $11 97. g4 Qc3) 97. Qe5+ {[%emt 0:00:27]} Kg6 {[%emt 0:00:21]} 98. Qe6+ {[%emt 0:00:21]} Kg7 {[%emt 0:00:09]} 99. Qe7+ {[%emt 0:00:39]} Kg6 {[%emt 0:00:14]} 100. Qe4+ {[%emt 0:00:35]} Kg7 {[%emt 0:00:15]} 101. d4 {[%emt 0:00:39]} Qc1 {[%emt 0:00:17]} 102. Qg4+ {[%emt 0:00:42]} Kh7 {[%emt 0:00:21]} 103. Qd7+ {[%emt 0:00:27]} Kh8 {[%emt 0:00:31]} 104. Qe8+ {[%emt 0:00:18]} Kh7 {[%emt 0:00:18]} 105. Qf7+ {[%emt 0:00:18]} Kh8 {[%emt 0:00:10]} 106. Qf6+ {[%emt 0:00:15]} Kh7 {[%emt 0:00:08]} 107. Qh4+ {[%emt 0:00:06]} Kg6 {[%emt 0:00:42]} 108. Qe4+ {[%emt 0:00:43]} Kg7 {[%emt 0:00:12]} 109. Qe5+ {[%emt 0:00:27]} Kg6 {[%emt 0:00:37]} 110. Qe6+ {[%emt 0:01:11]} Kg7 {[%emt 0:00:09]} 111. Qe3 {[%emt 0:00:38]} Qc6+ {[%emt 0:01:21]} 112. Kg4 {[%emt 0:00:36]} (112. Kf2 $142 Qf6+ 113. Qf4 Qb6 114. Qe5+ Kf7 115. Qh5+ Kg7 116. Kg2 Kg8 117. Qe8+ Kh7 118. Qe7+ Kg6 119. d5) 112... Qd7+ {[%emt 0:00:49]} 113. Kh4 {[%emt 0:00:24]} (113. Kf4 $142 Qf7+ 114. Kg5 Qg6+ 115. Kh4 Qh7+ 116. Kg4 Qg6+ 117. Kh4 Qh7+ 118. Kg4 Qg6+ 119. Qg5) 113... Kh8 {[%emt 0:01:38]} 114. Qe5+ {[%emt 0:00:47] White mates.} Kg8 {[%emt 0:01:03]} 115. d5 {[%emt 0:00:47]} Qh7+ {[%emt 0:02:06]} 116. Kg4 {[%emt 0:00:20]} Qc2 {[%emt 0:00:58]} 117. Qe6+ {[%emt 0:00:36]} Kh8 {[%emt 0:00:12]} 118. Qe8+ {[%emt 0:00:19]} Kg7 {[%emt 0:00:22]} 119. Qe7+ {[%emt 0:00:12]} Kh8 {[%emt 0:00:10]} 120. Qf8+ {[%emt 0:00:10] Weighted Error Value: White=0.51/Black=0.32} (120. Kg5 $142 Qc8 121. d6 Qg8+ 122. Kf6 Qxg3 123. Qe5 Qg7+ 124. Kf5 Qxe5+ 125. Kxe5) 1-0

[Event "44th Chess Olympiad Women 2022"]
[Site "Chennai"]
[Date "2022.08.02"]
[Round "5.41"]
[White "Madelta Glenda"]
[Black "Ogbiyoyo, Perpetual Eloho"]
[Result "1-0"]
[ECO "A45"]
[WhiteElo "1516"]
[BlackElo "1886"]
[Annotator "NA RC COMBH"]
[PlyCount "101"]
[EventDate "2022.07.29"]
[EventType "team-tourn"]
[EventCountry "IND"]
[SourceTitle "playchess.com"]
[Source "ChessBase"]
[SourceQuality "1"]
[WhiteTeam "Kenya"]
[BlackTeam "Nigeria"]
[WhiteTeamCountry "KEN"]
[BlackTeamCountry "NGR"]
[TimeControl "40/5400+30:1800+30"]

1. d4 {[%emt 0:00:04]} Nf6 {[%emt 0:00:31]} 2. Bf4 {[%emt 0:00:22]} c5 {[%emt 0:00:47]} 3. e3 {[%emt 0:01:00]} Nd5 {[%emt 0:00:33]} 4. Bg3 {[%emt 0:02:32]} Qb6 {[%emt 0:00:59]} 5. b3 {[%emt 0:00:37]} cxd4 {[%emt 0:00:58]} 6. exd4 {[%emt 0:00:45]} Nc6 {[%emt 0:00:51]} 7. Nf3 {[%emt 0:03:19]} e6 {[%emt 0:08:48]} 8. c3 {[%emt 0:03:42]} Nf6 {[%emt 0:01:30]} 9. Bd3 {[%emt 0:04:13]} d5 {[%emt 0:00:50]} 10. O-O {[%emt 0:01:18]} Be7 {[%emt 0:00:16]} 11. Nbd2 {[%emt 0:03:02]} O-O {[%emt 0:01:36]} 12. Ne5 {[%emt 0:00:19]} g6 {[%emt 0:01:10]} 13. h3 {[%emt 0:10:19]} Nxe5 {[%emt 0:00:17]} 14. Bxe5 {[%emt 0:00:45]} Nd7 {[%emt 0:00:33]} 15. Bf4 {[%emt 0:01:09]} Bd6 {[%emt 0:02:26]} 16. Bh6 {[%emt 0:00:29]} Re8 {[%emt 0:00:35]} 17. Qf3 {[%emt 0:05:02]} Qd8 {[%emt 0:16:19]} 18. c4 {[%emt 0:08:09]} Nf8 {[%emt 0:00:18]} 19. Kh1 {[%emt 0:05:35]} Bd7 {[%emt 0:08:21]} 20. cxd5 {[%emt 0:03:32]} exd5 {[%emt 0:00:08]} 21. Qxd5 {[%emt 0:06:43]} Bc6 {[%emt 0:00:14]} 22. Qg5 {[%emt 0:00:45]} Be7 {[%emt 0:00:40]} 23. Qg4 {[%emt 0:06:13]} Ne6 {[%emt 0:03:02]} 24. Nf3 {[%emt 0:06:35]} Bf6 {[%emt 0:03:08]} 25. Bc4 {[%emt 0:05:10]} Nxd4 {[%emt 0:04:23]} 26. Rad1 {[%emt 0:05:05]} Re4 {[%emt 0:02:11]} 27. Qg3 {[%emt 0:02:56]} Qe7 {[%emt 0:02:57]} 28. Nxd4 {[%emt 0:04:39]} Bxd4 {[%emt 0:03:18]} 29. Bg5 {[%emt 0:02:21]} Qc5 {[%emt 0:00:45]} 30. f3 {[%emt 0:00:22]} Be5 {[%emt 0:09:22]} 31. Bxf7+ {[%emt 0:03:07]} Kg7 {[%emt 0:01:08]} 32. Qf2 {[%emt 0:02:21]} Qxf2 {[%emt 0:07:22]} 33. Rxf2 {[%emt 0:00:13]} Rd4 {[%emt 0:01:12]} 34. Rxd4 {[%emt 0:01:27]} Bxd4 {[%emt 0:00:06]} 35. Rd2 {[%emt 0:00:10]} Bc5 {[%emt 0:01:50]} 36. Bd5 {[%emt 0:00:58]} Bb4 {[%emt 0:03:59]} 37. Rd1 {[%emt 0:00:30]} h6 {[%emt 0:03:24]} 38. Bxc6 {[%emt 0:01:04]} hxg5 {[%emt 0:00:10]} 39. Bxb7 {[%emt 0:00:11]} Rb8 {[%emt 0:01:09]} 40. Rd7+ {[%emt 0:00:38]} Kf6 {[%emt 0:00:41]} 41. Be4 {[%emt 0:31:12]} a5 {[%emt 0:31:15]} 42. Rb7 {[%emt 0:01:58]} Rd8 {[%emt 0:00:55]} 43. Rb6+ {[%emt 0:00:20]} Ke5 {[%emt 0:00:18]} 44. Rb5+ {[%emt 0:00:00]} Kf4 {[%emt 0:00:00]} 45. Rd5 {[%emt 0:00:00]} Rc8 {[%emt 0:00:00]} 46. Bxg6 {[%emt 0:00:00]} Be7 {[%emt 0:00:00]} 47. Kh2 {[%emt 0:00:00]} Rc1 {[%emt 0:00:00]} 48. Rf5+ {[%emt 0:00:00]} Ke3 {[%emt 0:00:00]} 49. Re5+ {[%emt 0:00:00]} Kf2 {[%emt 0:00:00]} 50. Rxe7 {[%emt 0:00:00]} Rg1 {[%emt 0:00:00]} 51. Re2+ {[%emt 0:00:00]} 1-0